bitfinex-derivatives/quotes_SOLF0:USTF0_20250319
["timestamp","ask_amount","ask_price","bid_price","bid_amount"]
[1742371645450,0.06076961,126.05,126.04,21.03031208]
[1742371645949,48.82681208,126.1,126.07,7.9319]
[1742371647049,48.88366157,126.1,126.07,7.98838766]
[1742371647249,7.9306,126.09,126.07,0.05648766]
[1742371648448,35.7306,126.09,126.07,0.05648766]
[1742371648849,35.7306,126.09,126.07,7.98828766]
[1742371649555,35.7306,126.09,126.07,0.05648766]
[1742371650853,7.9306,126.09,126.07,7.98818766]
[1742371651256,48.86366157,126.1,126.07,7.98818766]
[1742371651456,48.86366157,126.1,126.07,0.05648766]
[1742371652956,48.86366157,126.1,126.07,7.98808766]
[1742371653355,0.05684949,126.1,126.07,0.05648766]
[1742371653751,0.05684949,126.1,126.08,7.9307]
[1742371654953,7.98684949,126.1,126.07,7.98808766]
[1742371655157,13.15336157,126.1,126.07,0.05648766]
[1742371655955,7.9311,126.09,126.07,0.05648766]
[1742371659358,7.9306,126.09,126.07,0.05648766]
[1742371659760,7.9306,126.09,126.07,7.98828766]
[1742371660158,48.84366157,126.1,126.07,7.98828766]
[1742371660464,35.74714949,126.1,126.08,7.9312]
[1742371660664,35.74714949,126.1,126.07,13.15299974]
[1742371661258,35.74714949,126.1,126.07,21.08449974]
[1742371662063,27.81684949,126.1,126.08,7.9311]
[1742371663063,27.81684949,126.1,126.07,0.05648766]
[1742371663266,0.05684949,126.1,126.08,13.09651208]
[1742371663762,0.05684949,126.1,126.09,7.9306]
[1742371666267,0.05684949,126.1,126.09,21.02711208]
[1742371667166,0.05684949,126.1,126.09,7.9306]
[1742371675805,0.05684949,126.1,126.09,21.02711208]
[1742371681615,0.05684949,126.1,126.09,7.9306]
[1742371681810,0.05684949,126.1,126.09,21.02711208]
[1742371683510,48.76351208,126.14,126.11,7.9283]
[1742371683914,35.667,126.14,126.12,7.9279]
[1742371684118,7.927,126.14,126.12,7.9279]
[1742371684315,7.9264,126.15,126.12,7.9279]
[1742371684507,0.05720132,126.14,126.12,7.98861219]
[1742371685716,0.05720132,126.14,126.12,0.06071219]
[1742371685915,7.98390132,126.14,126.12,0.06071219]
[1742371687601,7.9273,126.13,126.12,0.06071219]
[1742371688109,7.9289,126.11,126.08,7.9301]
[1742371688318,21.02541208,126.11,126.08,7.9301]
[1742371689407,21.0800555,126.11,126.08,7.98842096]
[1742371690101,0.05464342,126.11,126.09,13.09651208]
[1742371690399,0.05464342,126.11,126.1,7.9292]
[1742371694594,0.05464342,126.11,126.1,21.02571208]
[1742371696603,0.05464342,126.11,126.1,48.74571208]
[1742371717016,0.05464342,126.11,126.1,21.02571208]
[1742371723627,0.05464342,126.11,126.1,48.74571208]
[1742371726217,0.05464342,126.11,126.09,7.9295]
[1742371726418,0.05464342,126.11,126.08,13.15483304]
[1742371727225,0.05464342,126.11,126.1,7.9292]
[1742371729527,0.05464342,126.11,126.09,21.02601208]
[1742371729821,7.98324342,126.11,126.09,7.9295]
[1742371730125,0.05464342,126.11,126.09,7.9295]
[1742371730519,0.05464342,126.11,126.1,7.9292]
[1742371733726,148.54264803,126.18,126.1,40.81651208]
[1742371733927,148.54264803,126.18,126.15,13.09651208]
[1742371734832,13.15091667,126.17,126.15,13.15393648]
[1742371735930,13.15091667,126.17,126.15,21.07983648]
[1742371736131,40.87091667,126.17,126.15,21.07983648]
[1742371736330,38.75581667,126.17,126.15,21.07983648]
[1742371736835,27.77193958,126.17,126.15,21.07983648]
[1742371737831,27.77193958,126.17,126.16,7.9254]
[1742371740631,27.77193958,126.17,126.15,7.9831244]
[1742371740832,27.77193958,126.17,126.15,0.0574244]
[1742371741034,13.09651208,126.16,126.15,0.0574244]
[1742371741331,13.09651208,126.16,126.09,286.61651208]
[1742371741531,13.09651208,126.14,126.09,286.61651208]
[1742371741733,27.72,126.13,126.1,7.9289]
[1742371742334,27.77200946,126.13,126.1,7.98586924]
[1742371742630,35.69970946,126.13,126.1,7.98586924]
[1742371744033,27.77200946,126.13,126.11,7.9286]
[1742371744422,27.77200946,126.13,126.11,13.09651208]
[1742371744628,27.77200946,126.13,126.12,7.928]
[1742371744923,27.77200946,126.13,126.11,13.09651208]
[1742371745127,0.05200946,126.13,126.11,13.09651208]
[1742371745327,0.05200946,126.13,126.11,21.02471208]
[1742371746337,0.05200946,126.13,126.12,7.928]
[1742371750337,0.05200946,126.13,126.12,21.02451208]
[1742371753436,0.05200946,126.13,126.12,13.09651208]
[1742371753641,0.05200946,126.13,126.1,0.05696924]
[1742371753642,0.05200946,126.13,126.11,7.9283]
[1742371755242,7.97930946,126.13,126.11,7.9283]
[1742371757044,0.05200946,126.13,126.11,7.9283]
[1742371758146,0.05200946,126.13,126.11,21.02481208]
[1742371759448,0.05200946,126.13,126.12,7.928]
[1742371761448,0.05200946,126.13,126.12,21.02451208]
[1742371769666,12.1467,126.18,126.15,7.9257]
[1742371769865,12.1467,126.18,126.15,21.02221208]
[1742371769866,35.6443,126.18,126.15,21.02221208]
[1742371770864,35.69952918,126.18,126.15,21.02221208]
[1742371771161,7.9249,126.17,126.15,0.05075514]
[1742371771769,7.9249,126.17,126.15,7.97675514]
[1742371773171,7.9249,126.17,126.15,0.05075514]
[1742371774269,40.87174126,126.18,126.15,0.05075514]
[1742371774667,42.89914126,126.18,126.15,0.05075514]
[1742371774867,7.9248,126.17,126.15,0.05075514]
[1742371775367,42.89914126,126.18,126.15,0.05075514]
[1742371775565,7.9254,126.16,126.15,0.05075514]
[1742371775766,35.6654,126.16,126.15,0.05075514]
[1742371778965,7.9274,126.13,126.11,13.09651208]
[1742371779268,7.9274,126.13,126.1,13.09651208]
[1742371779571,7.9274,126.13,126.1,21.02551208]
[1742371779973,35.7071,126.14,126.11,13.09651208]
[1742371780168,0.05117917,126.13,126.12,13.09651208]
[1742371780371,0.05117917,126.13,126.12,21.02451208]
[1742371780768,0.05117917,126.13,126.12,13.09651208]
[1742371781175,0.05117917,126.13,126.11,21.02471208]
[1742371781376,7.97857917,126.13,126.11,21.02471208]
[1742371783266,7.97857917,126.13,126.11,13.09651208]
[1742371783474,7.97857917,126.13,126.1,48.87645565]
[1742371783673,7.97857917,126.13,126.1,21.07645565]
[1742371784265,7.97857917,126.13,126.11,7.9282]
[1742371785178,0.05117917,126.13,126.12,7.928]
[1742371786581,0.05117917,126.13,126.12,21.02451208]
[1742371800894,0.05117917,126.13,126.11,7.9284]
[1742371801293,0.05117917,126.13,126.1,0.05104357]
[1742371801697,7.97887917,126.13,126.1,7.97974357]
[1742371801896,7.97887917,126.13,126.1,0.05104357]
[1742371802395,0.05117917,126.13,126.11,7.9283]
[1742371802594,0.05117917,126.13,126.1,13.14755565]
[1742371802801,0.05117917,126.13,126.11,7.9281]
[1742371802998,7.97857917,126.13,126.11,7.9281]
[1742371804596,7.928,126.12,126.1,7.97994357]
[1742371804796,13.14769125,126.13,126.1,0.05104357]
[1742371805000,27.82,126.12,126.1,0.05104357]
[1742371805800,7.9286,126.11,126.1,0.05104357]
[1742371808906,7.9314,126.07,126.03,2.1433]
[1742371809204,40.91651208,126.09,126.04,13.09651208]
[1742371809503,27.82,126.09,126.06,13.09651208]
[1742371809905,35.75,126.09,126.07,7.931]
[1742371810104,35.80538432,126.09,126.07,7.931]
[1742371811006,35.80538432,126.09,126.07,21.02751208]
[1742371811007,27.87538432,126.09,126.07,21.02751208]
[1742371811600,35.80518432,126.09,126.07,21.02751208]
[1742371812003,27.87538432,126.09,126.07,21.02751208]
[1742371812201,27.87538432,126.09,126.08,21.02701208]
[1742371813310,27.87538432,126.09,126.08,13.09651208]
[1742371814809,0.05538432,126.09,126.08,13.09651208]
[1742371815410,0.05538432,126.09,126.07,21.02731208]
[1742371817314,0.05538432,126.09,126.08,7.9305]
[1742371818606,0.05538432,126.09,126.07,21.02731208]
[1742371820314,0.05538432,126.09,126.08,7.9305]
[1742371823009,0.05538432,126.09,126.08,21.02701208]
[1742371823214,4.3108,126.14,126.08,13.09651208]
[1742371823415,27.84,126.13,126.1,13.09651208]
[1742371823607,27.84,126.13,126.11,7.9281]
[1742371824611,27.89220959,126.13,126.11,7.98259504]
[1742371825210,0.05220959,126.13,126.12,7.928]
[1742371825411,27.89220959,126.13,126.12,21.02451208]
[1742371825818,0.05220959,126.13,126.12,21.02451208]
[1742371828215,0.05220959,126.13,126.12,13.09651208]
[1742371829816,0.05220959,126.13,126.12,21.02451208]
[1742371832221,9.9194,126.19,126.12,40.93651208]
[1742371832529,1.9955,126.19,126.15,13.09651208]
[1742371832725,13.09651208,126.18,126.14,13.09651208]
[1742371833121,1.9955,126.19,126.14,13.09651208]
[1742371833326,13.09651208,126.18,126.14,13.09651208]
[1742371833830,0.05613456,126.17,126.15,0.06032108]
[1742371834230,7.9254,126.16,126.15,0.06032108]
[1742371835325,21.02191208,126.16,126.15,0.06032108]
[1742371836028,7.9254,126.16,126.15,0.06032108]
[1742371836530,21.02191208,126.16,126.15,0.06032108]
[1742371837129,7.9254,126.16,126.15,0.06032108]
[1742371843129,21.02191208,126.16,126.15,0.06032108]
[1742371848139,7.9272,126.14,126.11,21.02481208]
[1742371848441,35.7672,126.14,126.11,21.02481208]
[1742371849239,35.82683516,126.14,126.11,21.0789453]
[1742371850742,27.89963516,126.14,126.12,13.09651208]
[1742371852341,27.89963516,126.14,126.12,21.02411208]
[1742371853040,27.89963516,126.14,126.13,7.9273]
[1742371854841,0.05963516,126.14,126.13,7.9273]
[1742371855136,0.05963516,126.14,126.13,21.02381208]
[1742371857339,0.05963516,126.14,126.13,7.9273]
[1742371858438,0.05963516,126.14,126.12,7.9276]
[1742371858943,27.91963516,126.14,126.11,7.98243322]
[1742371859143,27.91963516,126.14,126.11,0.05413322]
[1742371859339,7.928,126.12,126.11,0.05413322]
[1742371860245,7.9287,126.11,126.09,7.9293]
[1742371860541,35.7687,126.11,126.09,7.9293]
[1742371861342,35.7687,126.11,126.08,21.02661208]
[1742371861544,35.8244302,126.11,126.09,0.05660101]
[1742371862343,35.8244302,126.11,126.09,7.98640101]
[1742371862344,27.8957302,126.11,126.09,7.98640101]
[1742371863446,27.8957302,126.11,126.09,21.08291309]
[1742371863942,27.8957302,126.11,126.09,0.05660101]
[1742371865745,35.8246302,126.11,126.09,7.98640101]
[1742371866350,35.8246302,126.11,126.09,0.05660101]
[1742371866649,7.9292,126.1,126.09,0.05660101]
[1742371870248,35.8246302,126.11,126.09,0.05660101]
[1742371871860,27.8957302,126.11,126.09,7.98640101]
[1742371874657,35.8244302,126.11,126.09,7.98640101]
[1742371874863,35.8244302,126.11,126.09,0.05660101]
[1742371876764,7.9292,126.1,126.09,0.05660101]
[1742371879769,21.02571208,126.1,126.09,0.05660101]
[1742371879969,48.92114228,126.11,126.09,0.05660101]
[1742371880270,35.8246302,126.11,126.09,0.05660101]
[1742371881369,35.8246302,126.11,126.09,21.08271309]
[1742371881563,27.8957302,126.11,126.09,21.08271309]
[1742371881763,27.8957302,126.11,126.1,7.9292]
[1742371883069,0.0557302,126.11,126.1,7.9292]
[1742371883770,0.0557302,126.11,126.1,21.02571208]
[1742371887876,35.7862,126.15,126.13,7.9273]
[1742371889075,35.83637401,126.15,126.13,7.97859578]
[1742371889375,35.83637401,126.15,126.13,0.05129578]
[1742371889977,27.91017401,126.15,126.13,7.97819578]
[1742371890672,27.91017401,126.15,126.14,7.9267]
[1742371890877,0.05017401,126.15,126.14,7.9267]
[1742371892280,13.09651208,126.19,126.16,7.9251]
[1742371892477,21.02031208,126.19,126.16,7.9251]
[1742371892676,21.02031208,126.19,126.15,13.09651208]
[1742371892677,27.82,126.18,126.15,13.09651208]
[1742371892876,27.82,126.18,126.15,7.9258]
[1742371893078,35.7445,126.18,126.15,7.9258]
[1742371893275,27.82,126.18,126.14,13.09651208]
[1742371893474,40.9774057,126.18,126.15,0.05170989]
[1742371894277,13.09651208,126.17,126.15,0.05170989]
[1742371894576,27.84,126.16,126.15,0.05170989]
[1742371895875,35.7654,126.16,126.15,0.05170989]
[1742371898585,48.86191208,126.16,126.15,0.05170989]
[1742371899882,40.93651208,126.16,126.1,7.929]
[1742371900180,40.93651208,126.16,126.1,21.02551208]
[1742371900181,13.09651208,126.14,126.1,21.02551208]
[1742371900379,27.88,126.13,126.1,21.02551208]
[1742371900581,35.8078,126.13,126.1,21.02551208]
[1742371900979,35.85812594,126.13,126.1,21.07668035]
[1742371902585,7.9282,126.12,126.1,13.14768035]
[1742371902881,7.9282,126.12,126.1,0.05116827]
[1742371903577,7.9286,126.11,126.1,0.05116827]
[1742371903983,35.7886,126.11,126.1,0.05116827]
[1742371904478,48.88511208,126.11,126.1,0.05116827]
[1742371907182,27.86,126.11,126.1,0.05116827]
[1742371907382,27.86,126.11,126.1,21.07688035]
[1742371907581,27.93032594,126.13,126.1,21.07688035]
[1742371907985,35.85822594,126.13,126.1,21.07688035]
[1742371908481,27.93032594,126.13,126.1,21.07688035]
[1742371908788,35.85792594,126.13,126.1,21.07688035]
[1742371910386,21.07443802,126.13,126.1,7.98036827]
[1742371910584,27.86,126.12,126.1,7.98036827]
[1742371911191,27.86,126.12,126.1,0.05116827]
[1742371911391,27.86,126.12,126.11,13.09651208]
[1742371911588,0.05032594,126.13,126.12,7.928]
[1742371912289,0.05032594,126.13,126.11,7.9283]
[1742371913189,0.05032594,126.13,126.1,13.14768035]
[1742371913386,0.05032594,126.13,126.1,6.59942431]
[1742371913591,0.05032594,126.13,126.11,13.09651208]
[1742371914291,0.05032594,126.13,126.12,7.928]
[1742371914493,0.05032594,126.13,126.12,21.02451208]
[1742371915785,0.05032594,126.13,126.12,7.928]
[1742371916188,0.05032594,126.13,126.11,21.02471208]
[1742371916898,0.05032594,126.13,126.12,7.928]
[1742371919093,0.05032594,126.13,126.12,21.02451208]
[1742371920993,0.05032594,126.13,126.12,7.928]
[1742371922287,0.05032594,126.13,126.1,0.05116827]
[1742371922793,7.97872594,126.13,126.1,7.98086827]
[1742371923493,7.9288,126.12,126.1,7.98086827]
[1742371923793,41.05651208,126.12,126.1,0.05116827]
[1742371924489,7.9294,126.11,126.1,0.05116827]
[1742371925398,48.98561208,126.12,126.1,0.05116827]
[1742371927195,27.96,126.12,126.1,7.98116827]
[1742371928199,27.96,126.12,126.11,7.9294]
[1742371932394,0.05032594,126.13,126.11,21.02591208]
[1742371932594,0.05032594,126.13,126.12,7.9287]
[1742371933102,0.05032594,126.13,126.11,21.02571208]
[1742371934190,0.05032594,126.13,126.12,7.9287]
[1742371934394,0.05032594,126.13,126.11,13.09651208]
[1742371934799,0.05032594,126.13,126.11,7.9291]
[1742371935602,0.05032594,126.13,126.1,13.14768035]
[1742371936201,0.05032594,126.13,126.11,7.9291]
[1742371936500,0.05032594,126.13,126.1,13.14768035]
[1742371936708,0.05032594,126.13,126.11,7.929]
[1742371937203,0.05032594,126.13,126.1,13.14768035]
[1742371937409,0.05032594,126.13,126.11,7.9294]
[1742371937605,0.05032594,126.13,126.1,13.14768035]
[1742371938000,0.05032594,126.13,126.11,7.9287]
[1742371938203,0.05032594,126.13,126.1,13.14768035]
[1742371938405,0.05032594,126.13,126.11,7.9289]
[1742371943097,0.05032594,126.13,126.1,7.98086827]
[1742371943304,27.9,126.12,126.1,7.98086827]
[1742371943601,35.829,126.12,126.1,7.98086827]
[1742371943804,40.99651208,126.12,126.1,0.05116827]
[1742371944207,21.02591208,126.11,126.1,0.05116827]
[1742371945911,40.99651208,126.12,126.1,0.05116827]
[1742371946709,27.9,126.12,126.1,0.05116827]
[1742371947914,27.9,126.12,126.11,7.9294]
[1742371959519,27.9,126.12,126.1,7.98086827]
[1742371960423,27.9,126.12,126.11,7.9294]
[1742371961721,35.8288,126.12,126.1,7.98086827]
[1742371961919,13.09651208,126.11,126.05,2.1339]
[1742371962122,27.86,126.1,126.06,13.09651208]
[1742371962318,35.7902,126.1,126.07,7.9316]
[1742371962526,13.09651208,126.09,126.04,2.1005]
[1742371962724,27.86,126.08,126.04,13.09651208]
[1742371963019,40.95651208,126.08,126.04,13.09651208]
[1742371963324,0.0523052,126.07,126.05,7.98825577]
[1742371963820,0.0523052,126.07,126.06,7.9325]
[1742371964818,0.0523052,126.07,126.06,21.02901208]
[1742371983346,0.0523052,126.07,126.06,7.9325]
[1742371986446,0.0523052,126.07,126.06,21.02901208]
[1742371986843,0.0523052,126.07,126.05,7.98795577]
[1742371987844,0.0523052,126.07,126.06,7.9325]
[1742371991348,0.0523052,126.07,126.06,21.02901208]
[1742371995547,0.0523052,126.07,126.06,7.9325]
[1742372001854,0.0523052,126.07,126.05,7.98795577]
[1742372003756,0.0523052,126.07,126.06,7.9325]
[1742372004354,0.0523052,126.07,126.06,21.02901208]
[1742372007158,0.0523052,126.07,126.06,7.9325]
[1742372015560,21.08881728,126.07,125.99,13.09651208]
[1742372015755,13.09651208,126.03,125.99,13.09651208]
[1742372016260,13.09651208,126.03,126.01,7.9351]
[1742372016662,13.15330346,126.03,126.01,7.98617176]
[1742372017361,13.15330346,126.03,126.01,0.05107176]
[1742372018063,13.15330346,126.03,126.01,7.98647176]
[1742372018962,13.15330346,126.03,126.02,7.935]
[1742372019267,0.05679138,126.03,126.02,7.935]
[1742372019468,0.05679138,126.03,126.02,21.03151208]
[1742372022671,0.05679138,126.03,126.02,48.79151208]
[1742372025272,27.76,126.07,126.05,7.9329]
[1742372026480,27.81981023,126.07,126.05,7.98636503]
[1742372027281,35.75181023,126.07,126.05,7.98636503]
[1742372032291,35.75181023,126.07,126.05,0.05346503]
[1742372033989,35.75181023,126.07,126.05,7.98636503]
[1742372033990,27.81981023,126.07,126.05,7.98636503]
[1742372035579,7.9325,126.06,126.05,0.05346503]
[1742372035785,13.09651208,126.06,126.01,13.09651208]
[1742372035986,27.76,126.05,126.01,13.09651208]
[1742372036592,27.76,126.05,126.03,7.9344]
[1742372036989,27.81891289,126.05,126.03,7.9858095]
[1742372040996,35.75211289,126.05,126.03,7.9858095]
[1742372041598,27.81891289,126.05,126.03,7.9858095]
[1742372041990,27.81891289,126.05,126.03,0.0514095]
[1742372042297,7.9338,126.04,126.03,0.0514095]
[1742372043296,48.84892497,126.05,126.03,0.0514095]
[1742372047601,35.75241289,126.05,126.03,0.0514095]
[1742372048800,7.9338,126.04,126.03,0.0514095]
[1742372051299,0.05891289,126.05,126.03,40.90792158]
[1742372051507,0.05891289,126.05,126.04,13.09651208]
[1742372053002,0.05891289,126.05,126.04,21.03031208]
[1742372054301,13.09651208,126.09,126.04,13.09651208]
[1742372054502,27.76,126.1,126.06,13.09651208]
[1742372054801,27.76,126.1,126.07,13.09651208]
[1742372055002,27.76,126.1,126.09,7.9306]
[1742372057301,27.76,126.1,126.08,7.981484]
[1742372059305,27.76,126.1,126.09,7.9306]
[1742372063211,0.05685375,126.11,126.1,7.93]
[1742372065810,0.05685375,126.11,126.08,7.981484]
[1742372066114,13.09651208,126.09,126.08,0.050584]
[1742372067615,21.02711208,126.09,126.08,0.050584]
[1742372094240,7.934,126.04,126.01,2.0333]
[1742372095044,40.83651208,126.05,126.01,2.0333]
[1742372095045,48.77001208,126.05,126.01,2.0333]
[1742372095345,0.05294197,126.04,126.02,7.99148363]
[1742372096044,0.05294197,126.04,126.02,21.08799571]
[1742372097246,0.05294197,126.04,126.03,21.03091208]
[1742372097635,27.74,126.07,126.03,13.09651208]
[1742372097843,27.74,126.07,126.05,7.933]
[1742372098552,7.9316,126.08,126.05,7.933]
[1742372098742,27.79131075,126.07,126.05,7.98686542]
[1742372098942,35.72331075,126.07,126.05,7.98686542]
[1742372099348,27.79131075,126.07,126.05,7.98686542]
[1742372100043,35.72321075,126.07,126.05,7.98686542]
[1742372100349,27.79131075,126.07,126.05,7.98686542]
[1742372101345,0.05131075,126.07,126.06,7.9325]
[1742372101747,0.05131075,126.07,126.05,0.05386542]
[1742372102449,0.05131075,126.07,126.05,7.98666542]
[1742372102843,0.05131075,126.07,126.06,7.9325]
[1742372103249,0.05131075,126.07,126.06,21.02901208]
[1742372103551,27.74,126.11,126.08,13.09651208]
[1742372104250,27.74,126.11,126.09,7.9301]
[1742372104456,27.80101621,126.11,126.09,7.98324592]
[1742372107751,27.80101621,126.11,126.09,0.05314592]
[1742372107952,40.89752829,126.11,126.09,0.05314592]
[1742372108356,21.02651208,126.1,126.09,0.05314592]
[1742372108852,2.1216,126.16,126.09,40.929658]
[1742372108853,40.87651208,126.16,126.09,40.929658]
[1742372109047,40.87651208,126.16,126.12,13.09651208]
[1742372109251,27.78,126.16,126.12,13.09651208]
[1742372109554,27.78,126.16,126.13,7.9278]
[1742372110157,27.83075038,126.16,126.14,7.9275]
[1742372110858,27.85075038,126.16,126.14,7.9275]
[1742372111060,0.05075038,126.16,126.14,7.9275]
[1742372113159,0.00621261,126.16,126.14,13.09651208]
[1742372113362,0.00621261,126.16,126.15,13.09651208]
[1742372113654,0.00621261,126.16,126.15,21.02341208]
[1742372113856,0.00621261,126.16,126.15,7.9269]
[1742372113857,10.97757717,126.16,126.15,7.9269]
[1742372114362,10.97757717,126.16,126.14,7.9272]
[1742372114956,10.97757717,126.16,126.13,40.99546655]
[1742372115262,10.97757717,126.16,126.14,13.09651208]
[1742372116061,10.97757717,126.16,126.15,7.9269]
[1742372116464,10.97757717,126.16,126.14,13.09651208]
[1742372116859,10.97757717,126.16,126.14,21.02371208]
[1742372117162,0.00621261,126.16,126.14,21.02371208]
[1742372117862,0.00621261,126.16,126.13,21.08346655]
[1742372118065,27.82621261,126.16,126.13,7.98695447]
[1742372118965,27.82621261,126.16,126.14,7.9273]
[1742372119367,27.82621261,126.16,126.13,13.15546655]
[1742372120271,27.82621261,126.16,126.14,7.9274]
[1742372121074,27.82621261,126.16,126.13,21.08326655]
[1742372121775,40.92272469,126.16,126.13,0.05895447]
[1742372122679,7.9272,126.15,126.13,0.05895447]
[1742372123576,7.9275,126.14,126.13,0.05895447]
[1742372124078,27.8,126.14,126.13,0.05895447]
[1742372125481,35.7275,126.14,126.13,0.05895447]
[1742372130284,27.8,126.14,126.13,0.05895447]
[1742372130981,35.7275,126.14,126.13,0.05895447]
[1742372132081,48.82401208,126.14,126.13,0.05895447]
[1742372137586,40.89651208,126.14,126.13,0.05895447]
[1742372138781,48.82401208,126.14,126.13,0.05895447]
[1742372139284,35.7275,126.14,126.13,0.05895447]
[1742372142788,48.82401208,126.14,126.13,0.05895447]
[1742372143987,7.9295,126.11,126.09,7.9303]
[1742372144191,7.9295,126.11,126.08,21.02751208]
[1742372145186,7.98794189,126.11,126.08,21.08856868]
[1742372145589,35.6704,126.1,126.08,0.0610566]
[1742372145791,13.09651208,126.09,126.08,0.0610566]
[1742372145981,13.09651208,126.09,126.03,17.27811208]
[1742372146185,48.78831208,126.08,126.03,17.27811208]
[1742372146386,35.6918,126.08,126.05,13.09651208]
[1742372146985,27.76,126.08,126.05,13.09651208]
[1742372147277,27.81666982,126.08,126.05,13.15319316]
[1742372147990,27.81666982,126.08,126.06,7.9324]
[1742372148390,27.81666982,126.08,126.06,13.09651208]
[1742372149092,27.81666982,126.08,126.07,7.9319]
[1742372153692,27.81666982,126.08,126.05,0.05668108]
[1742372153892,40.9131819,126.08,126.05,0.05668108]
[1742372154092,7.9319,126.07,126.05,0.05668108]
[1742372154401,27.76,126.06,126.05,0.05668108]
[1742372154798,27.76,126.06,126.05,7.98988108]
[1742372157602,27.76,126.06,126.05,0.05668108]
[1742372158601,27.76,126.06,126.05,7.98988108]
[1742372160005,0.05666982,126.08,126.07,7.9319]
[1742372160302,0.05666982,126.08,126.07,21.02841208]
[1742372163707,27.76,126.15,126.07,21.03651208]
[1742372163908,286.71651208,126.18,126.13,13.09651208]
[1742372164112,7.9266,126.16,126.13,21.02431208]
[1742372164409,27.84,126.17,126.13,21.02431208]
[1742372164607,27.84,126.17,126.13,13.09651208]
[1742372164809,27.87180614,126.16,126.14,0.05290435]
[1742372165006,0.05180614,126.16,126.14,13.14941643]
[1742372165205,0.05180614,126.16,126.15,13.09651208]
[1742372165404,0.05180614,126.16,126.15,21.02341208]
[1742372165703,0.05180614,126.16,126.15,7.9269]
[1742372166302,0.05180614,126.16,126.14,7.98020435]
[1742372166907,13.14831822,126.16,126.14,0.05290435]
[1742372167304,27.86,126.15,126.14,0.05290435]
[1742372169609,27.86,126.15,126.14,7.98040435]
[1742372169810,0.05180614,126.16,126.14,7.98040435]
[1742372170211,0.05180614,126.16,126.15,7.9269]
[1742372170511,0.05180614,126.16,126.15,21.02341208]
[1742372172413,27.84,126.19,126.17,7.925]
[1742372173115,27.86,126.19,126.17,7.925]
[1742372173513,27.91058464,126.19,126.17,7.98553479]
[1742372174014,27.91058464,126.19,126.17,0.06053479]
[1742372174814,27.91058464,126.19,126.17,7.98603479]
[1742372177314,27.91058464,126.19,126.18,7.925]
[1742372177715,27.91058464,126.19,126.17,0.06053479]
[1742372178218,27.91058464,126.19,126.17,7.98583479]
[1742372178820,0.05058464,126.19,126.17,7.98583479]
[1742372179917,0.05058464,126.19,126.18,21.02151208]
[1742372180118,27.8,126.21,126.18,13.09651208]
[1742372180318,27.8,126.21,126.19,13.09651208]
[1742372180517,27.8,126.21,126.18,13.09651208]
[1742372180922,27.8,126.21,126.2,7.9237]
[1742372181423,0.0520581,126.22,126.19,7.924]
[1742372181620,48.89117018,126.22,126.19,7.924]
[1742372181821,13.09651208,126.21,126.17,0.06053479]
[1742372182312,35.804,126.2,126.17,0.06053479]
[1742372182824,48.90051208,126.2,126.17,0.06053479]
[1742372183012,35.784,126.2,126.17,0.06053479]
[1742372183824,27.86,126.2,126.17,0.06053479]
[1742372184124,27.86,126.2,126.17,13.15704687]
[1742372184419,35.8348581,126.22,126.18,13.09651208]
[1742372184622,27.9120581,126.22,126.18,13.09651208]
[1742372185417,7.9235,126.21,126.18,13.09651208]
[1742372188425,7.9235,126.21,126.18,21.02141208]
[1742372188924,7.9238,126.2,126.18,13.09651208]
[1742372189623,27.9120581,126.22,126.18,13.09651208]
[1742372189826,41.00857018,126.22,126.18,13.09651208]
[1742372190219,7.9243,126.19,126.18,13.09651208]
[1742372190826,7.924,126.2,126.18,13.09651208]
[1742372193927,41.00857018,126.22,126.18,13.09651208]
[1742372195128,27.9120581,126.22,126.18,13.09651208]
[1742372195627,27.9120581,126.22,126.19,13.09651208]
[1742372195628,35.8347581,126.22,126.19,13.09651208]
[1742372196023,27.9120581,126.22,126.19,13.09651208]
[1742372196228,27.9120581,126.22,126.19,21.02061208]
[1742372196728,27.9120581,126.22,126.19,13.09651208]
[1742372197322,27.9120581,126.22,126.2,13.09651208]
[1742372197522,0.0520581,126.22,126.2,21.01991208]
[1742372197723,0.0520581,126.22,126.2,13.15354623]
[1742372198026,0.0520581,126.22,126.21,21.01961208]
[1742372198730,0.0520581,126.22,126.21,13.09651208]
[1742372200032,0.0520581,126.22,126.2,13.15354623]
[1742372200532,0.0520581,126.22,126.2,21.07724623]
[1742372202732,7.9745581,126.22,126.2,0.05703415]
[1742372203136,0.0520581,126.22,126.2,0.05703415]
[1742372203734,7.9749581,126.22,126.2,0.05703415]
[1742372204036,0.0520581,126.22,126.2,0.05703415]
[1742372204436,0.0520581,126.22,126.2,7.98063415]